Cogmind - Beta 15 @@@ ROGUE MODE // 2025.05.19 @ 08:44:25 Player: ForestDarkPsy Result: Self-destructed Performance ------------- Evolutions (1) 500 Regions Visited (3) 600 Robots Destroyed (55) 275 Value Destroyed (1410) 1410 Prototype IDs (2) 40 Alien Tech Used (0) 0 Bonus (0) 0 TOTAL SCORE: 2825 Bonus ------- None Cogmind --------- Core Integrity 267/400 Matter 290/300 Energy 70/100 System Corruption 0% Temperature Cool (6) Movement Treading (160) Location -9/Storage Parts ------- > --- POWER (1) -------- (None) > --- PROPULSION (3) --- Light Treads Light Treads Light Treads > --- UTILITY (3) ------ High-capacity Storage Unit Structural Scanner Sensor Array > --- WEAPON (2) ------- Light Cannon Rocket Launcher > --- INVENTORY (20) --- Improved Ion Engine Light Treads Light Treads Light Treads Armored Wheel Armored Wheel Armored Wheel Armored Wheel Cooled VTOL Module High-capacity Storage Unit Medium Matter Pod (100) Light Armor Plating Light Armor Plating Light Armor Plating Heavy Assault Rifle Autogun Shotgun Rocket Launcher Hammer Maul Peak State ------------ > --- POWER ------------ Light Nuclear Core > --- PROPULSION ------- Armored Wheel Armored Wheel Armored Wheel > --- UTILITY ---------- High-capacity Storage Unit Medium Matter Pod Hardened Light Armor Plating > --- WEAPON ----------- Shotgun Rocket Launcher > --- INVENTORY -------- Improved Ion Engine Light Treads Light Treads Armored Wheel High-capacity Storage Unit Sensor Array Autogun Autogun Light Cannon Light Cannon Rocket Launcher [Rating: 18] Favorites ----------- Power Ion Engine Engine Ion Engine Power Core Light Nuclear Core Propulsion Light Treads Treads Light Treads Wheel Armored Wheel Utility Hardened Light Armor Plating Device Sensor Array Storage High-capacity Storage Unit Protection Hardened Light Armor Plating Weapon Autogun Ballistic Gun Autogun Ballistic Cannon Light Cannon Launcher Rocket Launcher Impact Weapon Hammer Build | -11 -10 -9 -9 ------- Run | Yrd Mat Mat Sto Slots Evolved 2 | . . 2 . Power . | . . . . Propulsion 1 | . . 1 . Utility 1 | . . 1 . Weapon . | . . . . Parts Attached 39 | 7 10 15 7 Power 4 | 1 1 2 . Engine 3 | 1 1 1 . Core 1 | . . 1 . Reactor . | . . . . Propulsion 11 | 2 2 5 2 Treads 8 | 2 . 4 2 Leg . | . . . . Wheel 3 | . 2 1 . Hover . | . . . . Flight . | . . . . Utility 11 | 2 4 3 2 Device 4 | 1 1 1 1 Storage 4 | 1 1 2 . Processor . | . . . . Hackware . | . . . . Protection 3 | . 2 . 1 Artifact . | . . . . Weapon 13 | 2 3 5 3 Energy Gun . | . . . . Energy Cannon . | . . . . Ballistic Gun 8 | 2 3 3 . Ballistic Cannon 2 | . . 1 1 Launcher 2 | . . 1 1 Special Weapon . | . . . . Impact Weapon 1 | . . . 1 Slashing Weapon . | . . . . Piercing Weapon . | . . . . Special Melee Weapon . | . . . . Unidentified Prototypes . | . . . . Parts Lost 2 | . . 1 1 Power 1 | . . . 1 Propulsion . | . . . . Utility 1 | . . 1 . Weapon . | . . . . Highest Loss Streak 1 | . . 1 1 To Critical Strikes . | . . . . Average Backups 11 | 1 7 10 18 Power 1 | . . 1 1 Propulsion 3 | . 1 3 7 Utility 2 | . 2 1 3 Weapon 4 | . 2 4 5 Tool/Special . | . . . . Unused Backups 15 | . 6 1 8 Power 1 | . . 1 . Propulsion 5 | . 1 . 4 Utility 4 | . 2 . 2 Weapon 5 | . 3 . 2 Tool/Special . | . . . . Average Slot Usage (%) 99 | . 100 99 97 Engine 7 | . 14 6 . Core 4 | . . 4 8 Treads 18 | . 13 12 33 Wheel 12 | . 14 20 . Device 7 | . 7 5 11 Storage 13 | . 14 16 11 Protection 9 | . 6 11 10 Ballistic Gun 17 | . 28 19 2 Ballistic Cannon 4 | . . . 15 Launcher 1 | . . 1 1 Peak Build Rating 18 | 7 13 18 16 Average Rating 12 | 4 9 16 13 On Entrance 8 | . 7 12 16 Naked Turns . | . . . . Heaviest Build 61 | 13 26 61 58 Greatest Support 60 | 40 40 60 60 Greatest Overweight (x) 1 | 1 1 1 . Average Overweight (x) . | . . . . Largest Inventory Capacity 20 | 8 10 20 20 Average Capacity 13 | 6 8 14 20 Most Carried 20 | 3 10 17 20 Average Carried 11 | 1 7 10 18 Final Capacity 20 | 8 10 20 20 Final Carried 20 | 3 10 17 20 Class Distribution -------------------- 59% | Mutant 40% | Scavenger-Mutant Dominant Class ---------------- Mutant | -10/Materials Mutant | -9/Materials Scavenger-Mutant | -9/Storage Resources | -11 -10 -9 -9 ----------- Run | Yrd Mat Mat Sto Matter Collected 1771 | 278 310 767 416 Remotely 112 | 112 . . . Salvage Created 1808 | 105 460 641 602 Parts 123 | 6 42 43 32 Haulers Intercepted 5 | . 1 2 2 Recyclers Shooed 3 | . . . 3 Parts Field Recycled . | . . . . Retrieved Matter . | . . . . Parts Self-Destructed . | . . . . Prevented . | . . . . Kills | -11 -10 -9 -9 ------- Run | Yrd Mat Mat Sto Combat Hostiles Destroyed 41 | . 15 13 13 Guns 29 | . 15 13 1 Cannons 8 | . . . 8 AOE 4 | . . . 4 Classes Destroyed 9 | 2 5 1 1 Tunneler 1 | 1 . . . Hauler 5 | . 1 2 2 Recycler 3 | 1 . . 2 Operator 1 | . 1 . . Watcher 4 | . 1 1 2 Swarmer 12 | . 9 3 . Grunt 18 | . 6 4 8 Duelist 1 | . . . 1 Sentry 10 | . . 6 4 Best Kill Streak 7 | 2 6 4 7 Combat Bots Only 6 | . 6 4 4 Max Kills in Single Turn 3 | 1 1 1 3 Gunslinging . | . . . . Exploded 2 | . . . 2 Melee . | . . . . Uniques/NPCs Destroyed . | . . . . Combat | -11 -10 -9 -9 -------- Run | Yrd Mat Mat Sto Hostile Shots Fired 204 | . 75 78 51 Missed 47 | . 17 20 10 Hits 157 | . 58 58 41 Melee 3 | . . . 3 Projectile 154 | . 58 58 38 Critical Strikes 3 | . . 3 . Damage Taken 1964 | . 554 743 667 Core 205 | . 72 60 73 Absorbed by Shields . | . . . . Core Remaining (%) 85 | 100 71 . . Volleys Fired 153 | 4 47 57 45 Largest 2 | 2 2 2 2 Hottest 60 | 40 46 53 60 Shots Fired 284 | 8 94 108 74 Gun 212 | 8 94 104 6 Cannon 67 | . . 4 63 Launcher 5 | . . . 5 Special . | . . . . Kinetic 279 | 8 94 108 69 Thermal . | . . . . Explosive 5 | . . . 5 Electromagnetic . | . . . . Robot Hit Streak 16 | 3 14 16 13 Robot Miss Streak 4 | 1 4 3 4 Penetration Max . | . . . . Secondary Targets 3 | . 2 1 . Max Gunslinging Chain 1 | . 1 1 . Shots Hit Robots 191 | 5 59 77 50 Core Hits 86 | 4 30 27 25 Critical Kills . | . . . . Critical Parts Destroyed . | . . . . Critical Strikes 2 | . . . 2 Blast 2 | . . . 2 Melee Attacks 12 | . . . 12 Impact 12 | . . . 12 Slashing . | . . . . Piercing . | . . . . Sneak Attacks 3 | . . . 3 Combat Hostiles . | . . . . Follow-up Attacks . | . . . . Damage Inflicted 3234 | 40 684 1183 1327 Guns 1947 | 40 680 1149 78 Cannons 729 | . . 34 695 Explosions 349 | . . . 349 Melee 205 | . . . 205 Ramming 4 | . 4 . . Kinetic 2676 | 40 680 1183 773 Thermal . | . . . . Explosive 349 | . . . 349 Electromagnetic . | . . . . Impact 205 | . . . 205 Slashing . | . . . . Piercing . | . . . . Highest Corruption . | . . . . Average Corruption . | . . . . Corruption Purged . | . . . . Corruption Blocked . | . . . . Overload Shots . | . . . . Overflow Damage 48 | . . . 48 Projectiles . | . . . . Explosions . | . . . . Melee 48 | . . . 48 Knockbacks 4 | . . . 4 Impact . | . . . . Kinetic 4 | . . . 4 Secondary . | . . . . Self-Inflicted Damage 68 | . . . 68 Shots 3 | . . . 3 Rammed 2 | . 2 . . Targets Rammed 2 | . 2 . . Kicked . | . . . . Crushed . | . . . . Highest Temperature 131 | . 43 131 108 Average Temperature 28 | . 16 30 32 Received Heat Transfer 684 | . 150 339 195 Siege Activations . | . . . . Martial Activations . | . . . . Shielding Activations . | . . . . Robots Disrupted . | . . . . Combat Hostiles . | . . . . Robots Corrupted 1 | . . . 1 Combat Hostiles . | . . . . Parts Fried . | . . . . Impact Corruptions 1 | . . . 1 Robots Melted . | . . . . Combat Hostiles . | . . . . Parts Melted . | . . . . Heat Transferred . | . . . . Parts Sabotaged . | . . . . Parts Stolen . | . . . . Parts Stripped . | . . . . Power Chain Reactions . | . . . . Alert | -11 -10 -9 -9 ------- Run | Yrd Mat Mat Sto Maximum Alert Level . | . . . . Low Security (%) 100 | 100 100 100 100 Level 1 . | . . . . Level 2 . | . . . . Level 3 . | . . . . Level 4 . | . . . . Level 5 . | . . . . High Security . | . . . . Max Security . | . . . . Peak Influence 191 | 5 127 117 191 Initial 50 | . . 50 20 Average 57 | . 45 62 74 Influence Increases 1263 | 10 403 372 478 Destroy 0b10 Robot/C 820 | . 300 260 260 Destroy 0b10 Robot/NC 70 | 10 15 15 30 Destroy Leader 238 | . 74 86 78 Successful Hack 37 | . 13 9 15 Disable Machine 60 | . . . 60 Destroy Structure 38 | . 1 2 35 Influence Decreases 1093 | 10 282 443 358 Entered New Map 101 | . . 71 30 Time Decay 972 | 10 282 362 318 Lost Part 20 | . . 10 10 Squads Dispatched 9 | . 4 1 4 Investigation 4 | . 2 1 1 Extermination . | . . . . Reinforcement 2 | . 2 . . Assault . | . . . . Garrison 3 | . . . 3 Intercept . | . . . . Searches Triggered . | . . . . Construction Impeded . | . . . . Haulers Reinforced . | . . . . Active Scanning Responses . | . . . . Cargo Convoy Interrupts . | . . . . Stealth | -11 -10 -9 -9 --------- Run | Yrd Mat Mat Sto Distress Signals 7 | . 3 3 1 Communications Jammed . | . . . . Distress Signals . | . . . . Times Spotted 55 | . 19 18 18 Peak Tracking Total 8 | . 8 5 5 Tactical Retreats . | . . . . Traps | -11 -10 -9 -9 ------- Run | Yrd Mat Mat Sto Traps Triggered 1 | . 1 . . Indirectly . | . . . . Trap Hack Attempts . | . . . . Triggered . | . . . . Disarmed . | . . . . Reprogrammed . | . . . . Reused . | . . . . Traps Extracted . | . . . . Installed . | . . . . Triggered . | . . . . Machines | -11 -10 -9 -9 ---------- Run | Yrd Mat Mat Sto Machines Disabled 4 | . . . 4 Max in Single Turn 1 | . . . 1 Machines Repaired . | . . . . Machines Dismantled . | . . . . Machines Sabotaged . | . . . . Overloaded Fab Kills . | . . . . Hacking | -11 -10 -9 -9 --------- Run | Yrd Mat Mat Sto Machines Accessed 14 | . 6 4 4 Terminals 14 | . 6 4 4 Fabricators . | . . . . Repair Stations . | . . . . Recycling Units . | . . . . Scanalyzers . | . . . . Garrison Access . | . . . . Total Hacks 48 | . 21 13 14 Successful 22 | . 11 5 6 Failed 26 | . 10 8 8 Catastrophic 2 | . . . 2 Database Lockouts . | . . . . Manual 26 | . 11 9 6 Terminals 48 | . 21 13 14 Fabricators . | . . . . Repair Stations . | . . . . Recycling Units . | . . . . Scanalyzers . | . . . . Garrison Access . | . . . . Terminal Hacks 12 | . 6 2 4 Prototype ID Bank 1 | . 1 . . Open Door 2 | . . . 2 Terminal Index 1 | . . 1 . Alert Level 1 | . . . 1 Locate Traps 2 | . 2 . . Dispatch Records 1 | . 1 . . Hauler Manifests 1 | . . . 1 Registered Components 1 | . 1 . . Zone Layout 2 | . 1 1 . Fabricator Hacks . | . . . . Repair Station Hacks . | . . . . Recycling Unit Hacks . | . . . . Scanalyzer . | . . . . Garrison Access Hacks . | . . . . Unauthorized Hacks 10 | . 5 3 2 Terminals 10 | . 5 3 2 Botnet 10 | . 5 3 2 Fabricators . | . . . . Repair Stations . | . . . . Recycling Units . | . . . . Scanalyzers . | . . . . Garrison Access . | . . . . Data Cores Recovered . | . . . . Used . | . . . . Hacking Detections 14 | . 6 4 4 Full Trace Events 2 | . . 1 1 Feedback Events . | . . . . Feedback Blocked . | . . . . Robot Schematics Acquired . | . . . . Robots Built . | . . . . Authchips . | . . . . Time . | . . . . Total Robot Build Rating . | . . . . Part Schematics Acquired . | . . . . Parts Built . | . . . . Authchips . | . . . . Time . | . . . . Total Part Build Rating . | . . . . Parts Repaired . | . . . . Time . | . . . . Parts Recycled . | . . . . Recycled Matter . | . . . . Retrieved Matter . | . . . . Retrieved Components . | . . . . Parts Scanalyzed . | . . . . Part Schematics Acquired . | . . . . Parts Damaged . | . . . . Bothacking | -11 -10 -9 -9 ------------ Run | Yrd Mat Mat Sto Used RIF Installer . | . . . . Robots Hacked . | . . . . Non-combat . | . . . . Combat . | . . . . Robot Hacks Applied . | . . . . Relay Couplers Released . | . . . . Fabnet Peak Effective % . | . . . . Robots Rewired . | . . . . Allies Hacked . | . . . . Hacks Repelled . | . . . . Allies | -11 -10 -9 -9 -------- Run | Yrd Mat Mat Sto Total Allies . | . . . . Largest Group . | . . . . Highest-Rated Group . | . . . . Highest-Rated Ally . | . . . . Total Orders . | . . . . Ally Attacks . | . . . . Total Damage . | . . . . Kills . | . . . . Allies Corrupted . | . . . . Allies Melted . | . . . . Intel | -11 -10 -9 -9 ------- Run | Yrd Mat Mat Sto Active Infowar (turns) 1573 | . 431 433 709 Sensors 1142 | . . 433 709 Structural 6 | . . . 6 Seismic 431 | . 431 . . Robot Analysis Total . | . . . . Derelict Logs Recovered . | . . . . Drone Launches . | . . . . Drone Recoveries . | . . . . Exploration | -11 -10 -9 -9 ------------- Run | Yrd Mat Mat Sto Turns Passed 2513 | 94 882 828 709 Spaces Moved 1304 | 39 567 403 295 Core 5 | 5 . . . Treads 657 | 34 183 145 295 Legs . | . . . . Wheels 642 | . 384 258 . Hover . | . . . . Flight . | . . . . Fastest Speed 50 | 50 90 90 160 Average Speed 125 | 151 112 115 160 Slowest Speed 160 | 160 160 160 160 Overloaded Moves . | . . . . Propulsion Burnouts . | . . . . Robots Hopped . | . . . . Potential Cave-ins . | . . . . Cave-ins Triggered . | . . . . Exploration Rate (%) 43 | 5 75 47 45 Regions Visited 3 Branch Regions 1 Pre-discovered Areas . | . . . . Known Exits Taken . | . . . . Unknown Exits Taken 3 | 1 1 1 . Scrap Searched . | . . . . Spaces Dug 6 | . . . 6 Terrain Destroyed 54 | . . . 54 Melee . | . . . . Projectile . | . . . . AOE 54 | . . . 54 Terrain Rammed . | . . . . Walls Destroyed . | . . . . Machines Disabled . | . . . . Actions | -11 -10 -9 -9 --------- Run | Yrd Mat Mat Sto Total 1915 | 64 740 672 439 Wait 338 | 12 83 178 65 Move 1301 | 38 566 402 295 Hop . | . . . . Pick Up 38 | 3 17 12 6 Fast Attach 9 | 7 2 . . Attach 7 | . 1 5 1 Detach . | . . . . Swap 29 | . 7 13 9 Drop 26 | . 15 5 6 Fire 153 | 4 47 57 45 Melee 12 | . . . 12 Ram . | . . . . Kick . | . . . . Crush 2 | . 2 . . Escape Stasis . | . . . . Rewire . | . . . . Trap . | . . . . Miscellaneous . | . . . . Route ------- -11/Scrapyard -10/Materials (discovered 3 exits: *Mat x2 / [*Min]) -9/Materials (discovered 5 exits: [*Mat] / [*Min x2] / *Sto x2) -9/Storage History --------- Turn | Location | Event 18 | -11/Scrapyard | Discovered new exit (range 15) 95 | -11/Scrapyard | Entered Materials 295 | -10/Materials | Discovered new exit (range 16) 316 | -10/Materials | Build established: Mutant 724 | -10/Materials | Discovered new exit (range 16) 795 | -10/Materials | Derelicts attacked the area 930 | -10/Materials | Discovered new exit (range 4) 977 | -10/Materials | Entered another Materials area 977 | -9/Materials | Evolved 2 slots: Propulsion x1, Utility x1 979 | -9/Materials | Discovered new exit (range 8) 1087 | -9/Materials | Discovered new exit (range 15) 1338 | -9/Materials | Discovered new exit (range 13) 1734 | -9/Materials | Discovered new exit (range 13) 1766 | -9/Materials | Discovered new exit (range 10) 1787 | -9/Materials | Build established: Scavenger-Mutant 1805 | -9/Materials | Entered Storage 2216 | -9/Storage | Garrison activated, responded to threat 2514 | -9/Storage | Self-destructed Last Messages --------------- 02455_ Acquired 9 matter. 02457_ U-05 Engineer builds a Door. 02459_ K-01 Serf collects debris. 02460_ U-05 Engineer builds a Wall. 02461_ K-01 Serf collects debris. 02464_ U-05 Engineer lays Concrete. 02464_ K-01 Serf collects debris. 02465_ U-05 Engineer builds a Wall. 02465_ Connecting with Terminal... >>Trojan(Botnet) Trojan loaded successfully. Testing... Terminal linked with 1 system. Awaiting botnet instructions. 02466_ K-01 Serf collects debris. 02468_ U-05 Engineer builds a Wall. 02468_ K-01 Serf collects debris. 02469_ U-05 Engineer builds a Wall. 02506_ Dropped Lgt. Cannon. 02507_ Acquired Structural Scanner. Map ----- +----------------------------------------------------+ | ??????????????????????????????????????????? | | ??????????????????????????????????????????? | | ??????????????????????????????????????????? | | ??????????????????????????????????????????? | | ??????????????????????????????????????????? | | ??????????????????????????????????????????? | | ??????????????????????????????????????????? | | ??????????????????????????????????????????? | | ??????????????????????????????????????????? | | ??????????????????????????????????????????? | | ???#+#????????????????????????????????????? | | ???# #????????????????????????????????????? | | #??# #####?#+#????????????????????????????? | | #??# # ### ########?????????????????????? | | #??# # T ??????????????? | | #### ### ########??????? #???????????? | | ## [ ###+#############?? ##???????????? | | ### =%* ## ######### ##???????????? | | / [ != ## # #### ##???????????? | | ## % ## # ! !# ???????????? | | ## % % ## # # ?????????????? | | ####= ### # # ??????????????? | | #### ## #?# # [# ??????????????? | | ##%####?# # ! # ##??????????????? | | ## #????# # ] # ##??????????????? | | ## #????# + ! /@##??????????????? | | ####/#????#####+#### # ##??????????????? | | #?#??????????????####### ##??????????????? | | #???????????????? ??????????????? | | #?????????????????????? + ????????????? | | #????????????????????? ##????????????? | | #?????????????????????### ###????????????? | | #?????????????????????###g###????????????? | | #??????????????????????? ##?????????????? | | #???????????????????????? ##?????????????? | | #???????????????????????? ##?????????????? | | ##????????????????????????g##?????????????? | | ?????????????????????????? ##?????????????? | | ?????????????????????????? ##?????????????? | | ??????????????????????????????????????????? | | ??????????????????????????????????????????? | | ??????????????????????????????????????????? | | ??????????????????????????????????????????? | | ??????????????????????????????????????????? | | ??????????????????????????????????????????? | | ??????????????????????????????????????????? | | ??????????????????????????????????????????? | | ??????????????????????????????????????????? | | ??????????????????????????????????????????? | | ??????????????????????????????????????????? | +----------------------------------------------------+ Best States ------------- Heat Dissipation 28 Energy Generation 14 Energy Capacity 265 Matter Stores 362 Matter Capacity 400 Sight Range 16 Robot Scan Range 14 Terrain Scan Density 10 Armor Coverage 150 Evasion (%) 42 Recoil Reduction 3 Item Schematics ----------------- None Robot Schematics ------------------ None Fabricated ------------ Nothing Repaired ---------- Nothing Alien Tech Used ----------------- None Achievements -------------- None Challenges ------------ None Game ------ Seed MachineDataClaw Manual? 0 Play Time 00:45:40 Cumulative 187.9 hours Start 2025.05.19 @ 07:49:14 End 2025.05.19 @ 08:44:25 Sessions 1 Manual Loads 0 Difficulty Rogue Special Mode None Game No. 163 Rogue 163 Adventurer 0 Explorer 0 Win Type - Total 0 Types 0/0/0/0/0/0/0/0/0/0 Lore% 25 Gallery% 40 Achievement% 39 Wizard Run 0 Options --------- Layout 0 ASCII 1 Keyboard 0 Movement Mouse Keybinds 0 Fullscreen 1 Font 18/SmallcapsGlow Map View 76x50 Zoom Use 0% Tactical HUD 1 Map Filters NONE Filters NONE Steam 1 RUN: f3b26e1b-1a0d-4237-9719-282d270f5176